Workbook

Sheet INTRODUCCIÓN
B9: SIN-DME CUESTIONARIO DE SÍNTOMAS MÚSCULO ESQUELÉTICOS
B11: El cuestionario de sintomatología SIN-DME, es una prueba tamiz que tiene como objetivo recolectar información sobre la presencia de síntomas relacionados con Desórdenes Músculo Esqueléticos en la población trabajadora de una empresa u organización productiva. El cuestionario se divide en cuatro dominios: a. Información personal. En la cual se recoleta información del trabajador y el cargo ocupado. b. Hábitos. Se indaga sobre los hábitos individuales: consumo de tabaco y actividad física. c. Trabajo. Tiene como finalidad identificar la exposición laboral a posibles eventos generadores de DME. d. Estado de salud. Se utiliza un gráfico que permite a través de la codificación visual, identificar las zonas del cuerpo donde se presentan diferentes síntomas asociados con DME. Se le pide al trabajador que IDENTIFIQUE la parte del cuerpo en donde ha presentado dolor o molestias. Luego se pregunta sobre la duración del mismo y sobre la intensidad del tipo de dolor identificado, finalmente se indaga sobre la interferencia de los síntomas en las actividades desarrolladas por el trabajador.

Sheet CUESTIONARIO SIN-DME
A1: SIN-DME Cuestionario de Síntomas Músculo Esqueléticos
A7: DATOS EMPRESA | D7: Fecha | E7: Departamento | G7: Municipio/Ciudad
A9: Razón Social
A13: INFORMACIÓN DEL TRABAJADOR | D13: Nombres | F13: Apellidos
A15: Número de identificación | D15: Sexo | F15: Peso (Kg) | H15: Estatura (cm)
D16: Hombre | E16: Mujer
A17: ¿Usted es? | D17: Edad | F17: Área o Dependencia
A18: Derecho | B18: Izquierdo | C18: Ambos | E18: Años
A19: Su cargo actual es | F19: Antigüedad en el cargo
G20: Años | H20: Meses
A23: HÁBITOS | D23: Fuma | F23: ¿Cuántos cigarrillos día? | H23: ¿Hace cuánto tiempo fuma?
D24: Sí | E24: No
A25: ¿Realiza actividad física? | C25: ¿Cuál? | F25: Frecuencia | H25: Duración
A26: Sí | B26: No | F26: Seleccione | H26: Seleccione
A29: SU TRABAJO | D29: ¿Cuál es su jornada de trabajo? | G29: ¿Cuántas horas trabaja por día?
D30: Seleccione | G30: Seleccione
A31: ¿La duración semanal de la jornada es variable? | D31: Explique
A32: Seleccione
A35: SU ESTADO DE SALUD | D35: ¿Durante los últimos 7 días ha presentado dolor, molestias o inconfort en alguna parte del cuerpo?
D36: Sí | F36: No
A37: ¿Durante los últimos 7 días, Usted ha presentado alguna enfermedad? | E37: ¿Cuál?
A38: Sí | B38: No
A41: Observaciones
A52: Cuestionario de Síntomas Músculo Esqueléticos
A57: EVALUACIÓN CONDICIONES DE SALUD MÚSCULO ESQUELÉTICA ACTUAL | D57: De acuerdo a las partes del cuerpo que identifica en cada gráfico, seleccione los lugares donde Usted presenta molestias:
B61: 1.Tengo molestias en el Cuello | E61: 3. Los síntomas se presentan cuando:
B62: Lado izquierdo | C62: Lado derecho | D62: Ambos | E62: Seleccione
B63: 2. Generalmente se presentan como: | E63: 4. Los tengo desde hace: | G63: 5. Permanecen por:
B64: Seleccione | E64: Seleccione | G64: Seleccione
B65: 6. Si presenta DOLOR seleccione a continuación la INTENSIDAD del mismo: | G65: Seleccione
B66: 7. Si usted experimentó molestias, dolor ¿Qué tan incómodo era esto? | G66: Seleccione
B67: 8. Si usted experimentó dolor, ¿Cuánto interfirió con su habilidad para trabajar? | G67: Seleccione
B69: 1.Tengo molestias en el hombro | E69: 3. Los síntomas se presentan cuando:
B70: Lado izquierdo | C70: Lado derecho | D70: Ambos | E70: Seleccione
B71: 2. Generalmente se presentan como: | E71: 4. Los tengo desde hace: | G71: 5. Permanecen por:
B72: Seleccione | E72: Seleccione | G72: Seleccione
B73: 6. Si presenta DOLOR seleccione a continuación la INTENSIDAD del mismo: | G73: Seleccione
B74: 7. Si usted experimentó molestias, dolor ¿Qué tan incómodo era esto? | G74: Seleccione
B75: 8. Si usted experimentó dolor, ¿Cuánto interfirió con su habilidad para trabajar? | G75: Seleccione
B77: 1.Tengo molestias en el Brazo | E77: 3. Los síntomas se presentan cuando:
B78: Lado izquierdo | C78: Lado derecho | D78: Ambos | E78: Seleccione
B79: 2. Generalmente se presentan como: | E79: 4. Los tengo desde hace: | G79: 5. Permanecen por:
B80: Seleccione | E80: Seleccione | G80: Seleccione
B81: 6. Si presenta DOLOR seleccione a continuación la INTENSIDAD del mismo: | G81: Seleccione
B82: 7. Si usted experimentó molestias, dolor ¿Qué tan incómodo era esto? | G82: Seleccione
B83: 8. Si usted experimentó dolor, ¿Cuánto interfirió con su habilidad para trabajar? | G83: Seleccione
B85: 1.Tengo molestias en la codo | E85: 3. Los síntomas se presentan cuando:
B86: Lado izquierdo | C86: Lado derecho | D86: Ambos | E86: Seleccione
B87: 2. Generalmente se presentan como: | E87: 4. Los tengo desde hace: | G87: 5. Permanecen por:
B88: Seleccione | E88: Seleccione | G88: Seleccione
B89: 6. Si presenta DOLOR seleccione a continuación la INTENSIDAD del mismo: | G89: Seleccione
B90: 7. Si usted experimentó molestias, dolor ¿Qué tan incómodo era esto? | G90: Seleccione
B91: 8. Si usted experimentó dolor, ¿Cuánto interfirió con su habilidad para trabajar? | G91: Seleccione
B93: 1.Tengo molestias en el antebrazo | E93: 3. Los síntomas se presentan cuando:
B94: Lado izquierdo | C94: Lado derecho | D94: Ambos | E94: Seleccione
B95: 2. Generalmente se presentan como: | E95: 4. Los tengo desde hace: | G95: 5. Permanecen por:
B96: Seleccione | E96: Seleccione | G96: Seleccione
B97: 6. Si presenta DOLOR seleccione a continuación la INTENSIDAD del mismo: | G97: Seleccione
B98: 7. Si usted experimentó molestias, dolor ¿Qué tan incómodo era esto? | G98: Seleccione
B99: 8. Si usted experimentó dolor, ¿Cuánto interfirió con su habilidad para trabajar? | G99: Seleccione
B104: 1.Tengo molestias en el muñeca | E104: 3. Los síntomas se presentan cuando:
B105: Lado izquierdo | C105: Lado derecho | D105: Ambos | E105: Seleccione
B106: 2. Generalmente se presentan como: | E106: 4. Los tengo desde hace: | G106: 5. Permanecen por:
B107: Seleccione | E107: Seleccione | G107: Seleccione
B108: 6. Si presenta DOLOR seleccione a continuación la INTENSIDAD del mismo: | G108: Seleccione
B109: 7. Si usted experimentó molestias, dolor ¿Qué tan incómodo era esto? | G109: Seleccione
B110: 8. Si usted experimentó dolor, ¿Cuánto interfirió con su habilidad para trabajar? | G110: Seleccione
B112: 1.Tengo molestias en la mano | E112: 3. Los síntomas se presentan cuando:
B113: Lado izquierdo | C113: Lado derecho | D113: Ambos | E113: Seleccione
B114: 2. Generalmente se presentan como: | E114: 4. Los tengo desde hace: | G114: 5. Permanecen por:
B115: Seleccione | E115: Seleccione | G115: Seleccione
B116: 6. Si presenta DOLOR seleccione a continuación la INTENSIDAD del mismo: | G116: Seleccione
B117: 7. Si usted experimentó molestias, dolor ¿Qué tan incómodo era esto? | G117: Seleccione
B118: 8. Si usted experimentó dolor, ¿Cuánto interfirió con su habilidad para trabajar? | G118: Seleccione
B120: 1.Tengo molestias en los dedos | E120: 3. Los síntomas se presentan cuando:
B121: Lado izquierdo | C121: Lado derecho | D121: Ambos | E121: Seleccione
B122: 2. Generalmente se presentan como: | E122: 4. Los tengo desde hace: | G122: 5. Permanecen por:
B123: Seleccione | E123: Seleccione | G123: Seleccione
B124: 6. Si presenta DOLOR seleccione a continuación la INTENSIDAD del mismo: | G124: Seleccione
B125: 7. Si usted experimentó molestias, dolor ¿Qué tan incómodo era esto? | G125: Seleccione
B126: 8. Si usted experimentó dolor, ¿Cuánto interfirió con su habilidad para trabajar? | G126: Seleccione
B128: 1.Tengo molestias en la espalda alta | E128: 3. Los síntomas se presentan cuando:
B129: Lado izquierdo | C129: Lado derecho | D129: Ambos | E129: Seleccione
B130: 2. Generalmente se presentan como: | E130: 4. Los tengo desde hace: | G130: 5. Permanecen por:
B131: Seleccione | E131: Seleccione | G131: Seleccione
B132: 6. Si presenta DOLOR seleccione a continuación la INTENSIDAD del mismo: | G132: Seleccione
B133: 7. Si usted experimentó molestias, dolor ¿Qué tan incómodo era esto? | G133: Seleccione
B134: 8. Si usted experimentó dolor, ¿Cuánto interfirió con su habilidad para trabajar? | G134: Seleccione
B136: 1.Tengo molestias en la espalda baja | E136: 3. Los síntomas se presentan cuando:
B137: Lado izquierdo | C137: Lado derecho | D137: Ambos | E137: Seleccione
B138: 2. Generalmente se presentan como: | E138: 4. Los tengo desde hace: | G138: 5. Permanecen por:
B139: Seleccione | E139: Seleccione | G139: Seleccione
B140: 6. Si presenta DOLOR seleccione a continuación la INTENSIDAD del mismo: | G140: Seleccione
B141: 7. Si usted experimentó molestias, dolor ¿Qué tan incómodo era esto? | G141: Seleccione
B142: 8. Si usted experimentó dolor, ¿Cuánto interfirió con su habilidad para trabajar? | G142: Seleccione
B144: 1.Tengo molestias en la cadera | E144: 3. Los síntomas se presentan cuando:
B145: Lado izquierdo | C145: Lado derecho | D145: Ambos | E145: Seleccione
B146: 2. Generalmente se presentan como: | E146: 4. Los tengo desde hace: | G146: 5. Permanecen por:
B147: Seleccione | E147: Seleccione | G147: Seleccione
B148: 6. Si presenta DOLOR seleccione a continuación la INTENSIDAD del mismo: | G148: Seleccione
B149: 7. Si usted experimentó molestias, dolor ¿Qué tan incómodo era esto? | G149: Seleccione
B150: 8. Si usted experimentó dolor, ¿Cuánto interfirió con su habilidad para trabajar? | G150: Seleccione
B152: 1.Tengo molestias en el muslo | E152: 3. Los síntomas se presentan cuando:
B153: Lado izquierdo | C153: Lado derecho | D153: Ambos | E153: Seleccione
B154: 2. Generalmente se presentan como: | E154: 4. Los tengo desde hace: | G154: 5. Permanecen por:
B155: Seleccione | E155: Seleccione | G155: Seleccione
B156: 6. Si presenta DOLOR seleccione a continuación la INTENSIDAD del mismo: | G156: Seleccione
B157: 7. Si usted experimentó molestias, dolor ¿Qué tan incómodo era esto? | G157: Seleccione
B158: 8. Si usted experimentó dolor, ¿Cuánto interfirió con su habilidad para trabajar? | G158: Seleccione
B160: 1.Tengo molestias en la rodilla | E160: 3. Los síntomas se presentan cuando:
B161: Lado izquierdo | C161: Lado derecho | D161: Ambos | E161: Seleccione
B162: 2. Generalmente se presentan como: | E162: 4. Los tengo desde hace: | G162: 5. Permanecen por:
B163: Seleccione | E163: Seleccione | G163: Seleccione
B164: 6. Si presenta DOLOR seleccione a continuación la INTENSIDAD del mismo: | G164: Seleccione
B165: 7. Si usted experimentó molestias, dolor ¿Qué tan incómodo era esto? | G165: Seleccione
B166: 8. Si usted experimentó dolor, ¿Cuánto interfirió con su habilidad para trabajar? | G166: Seleccione
B168: 1.Tengo molestias en la pierna | E168: 3. Los síntomas se presentan cuando:
B169: Lado izquierdo | C169: Lado derecho | D169: Ambos | E169: Seleccione
B170: 2. Generalmente se presentan como: | E170: 4. Los tengo desde hace: | G170: 5. Permanecen por:
B171: Seleccione | E171: Seleccione | G171: Seleccione
B172: 6. Si presenta DOLOR seleccione a continuación la INTENSIDAD del mismo: | G172: Seleccione
B173: 7. Si usted experimentó molestias, dolor ¿Qué tan incómodo era esto? | G173: Seleccione
B174: 8. Si usted experimentó dolor, ¿Cuánto interfirió con su habilidad para trabajar? | G174: Seleccione
B176: 1.Tengo molestias en el pie | E176: 3. Los síntomas se presentan cuando:
B177: Lado izquierdo | C177: Lado derecho | D177: Ambos | E177: Seleccione
B178: 2. Generalmente se presentan como: | E178: 4. Los tengo desde hace: | G178: 5. Permanecen por:
B179: Seleccione | E179: Seleccione | G179: Seleccione
B180: 6. Si presenta DOLOR seleccione a continuación la INTENSIDAD del mismo: | G180: Seleccione
B181: 7. Si usted experimentó molestias, dolor ¿Qué tan incómodo era esto? | G181: Seleccione
B182: 8. Si usted experimentó dolor, ¿Cuánto interfirió con su habilidad para trabajar? | G182: Seleccione

Sheet BD-SINDME
D3: CUESTIONARIO DE SÍNTOMAS MÚSCULO ESQUELÉTICOS
B7: DATOS EMPRESA | F7: A. INFORMACION PERSONAL | U7: B. HÁBITOS | AD7: C. SU TRABAJO | AI7: D. ESTADO DE SALUD ACTUAL | FQ7: RESUMEN
U8: FUMAR | Z8: ACTIVIDAD FISICA | AI8: MOLESTIA O ENFERMEDAD ÚLTIMOS 7 DÍAS | AL8: EVALUACIÓN CONDICIÓN DE SALUD MÚSCULO ESQUELÉTICA ACTUAL
AL9: 29. CUELLO | AU9: 30. HOMBRO | BD9: 31. CODO | BM9: 32. ANTEBRAZO | BV9: 33. BRAZO | CE9: 34. MUÑECA | CN9: 35. MANO | CW9: 36. DEDOS | DF9: 37. ESPALDA ALTA | DO9: 38. ESPALDA BAJA | DX9: 39. CADERA | EG9: 40. MUSLO | EP9: 41. RODILLA | EY9: 42. PIERNA | FH9: 43. PIE
B10: FECHA (dd/mm/aaaa) | C10: 1. DEPARTAMENTO | D10: 2. MUNICIPIO | E10: 3. RAZÓN SOCIAL | F10: 4. NOMBRES | G10: 5. APELLIDOS | H10: 6. NÚMERO IDENTIFICACIÓN | I10: 7. SEXO | J10: 8. PESO (Kg) | K10: 9. ESTATURA (m) | L10: 9.1 IMC | M10: 9.2 CLASIFICACIÓN IMC | N10: 10. EDAD | O10: 10.1 GRUPO DE EDAD | P10: 11. USTED ES (DOMINANCIA) | Q10: 12. ÁREA O DEPENDENCIA | R10: 13. CARGO ACTUAL | S10: 14. ANTIGÜEDAD EN EL CARGO ACTUAL (AÑOS) | T10: 14.1 GRUPO DE ANTIGÜEDAD EN EL CARGO ACTUAL | U10: 16. FUMA | V10: 17. ¿CUÁNTOS CIGARRILLOS AL DÍA? | W10: 18. GRUPO CIGARRILLOS FUMADOS AL DÍA | X10: 19 ¿HACE CUANTO TIEMPO FUMA? (AÑOS) | Y10: 19.1 GRUPO TIEMPO QUE HACE QUE FUMA | Z10: 20. ¿REALIZA ALGÚN TIPO DE ACTIVIDAD FÍSICA? | AA10: 21. ¿CUÁL? | AB10: 22. ¿CON QUÉ FRECUENCIA? | AC10: 23. ¿POR CUÁNTO TIEMPO REALIZA ESTA ACTIVIDAD? | AD10: 24. ¿CUÁL ES SU JORNADA DE TRABAJO? | AE10: 25. ¿CUANTAS HORAS TRABAJA POR DÍA? | AF10: 25.1 GRUPO HORAS DIARIAS TRABAJADAS | AG10: 26. LA DURACION SEMANAL DE SU TRABAJO ES VARIABLE | AH10: 26.1 EXPLIQUE | AI10: 27. ¿DURANTE LOS ÚLTIMOS 7 DÍAS HA PRESENTADO DOLOR, MOLESTIA O INCONFORT EN ALGUNA PARTE DEL CUERPO? | AJ10: 28. ¿DURANTE LOS ÚLTIMOS 7 DÍAS HA PRESENTADO ALGUNA ENFERMEDAD? | AK10: 28.1 ¿CUAL? | AL10: 29.1 LOCALIZACIÓN DE LOS SÍNTOMAS | AM10: 29.2 GENERALMENTE SE PRESENTA COMO | AN10: 29.3 LOS SÍNTOMAS SE PRESENTAN CUANDO | AO10: 29.4 LOS TENGO DESDE HACE | AP10: 29.5 PERMANECEN POR | AQ10: 29.6 INTENSIDAD DEL DOLOR | AR10: 29.6.1 GRUPO INTENSIDAD DEL DOLOR | AS10: 29.7 ¿QUÉ TAN INCÓMODO ERA ESTO? | AT10: 29.8 ¿CUÁNTO INTERFIRIÓ CON SU HABILIDAD PARA TRABAJAR? | AU10: 30.1 LOCALIZACIÓN DE LOS SÍNTOMAS | AV10: 30.2 GENERALMENTE SE PRESENTA COMO | AW10: 30.3 LOS SÍNTOMAS SE PRESENTAN CUANDO | AX10: 30.4 LOS TENGO DESDE HACE | AY10: 30.5 PERMANECEN POR | AZ10: 30.6 INTENSIDAD DEL DOLOR | BA10: 30.6.1 GRUPO INTENSIDAD DEL DOLOR | BB10: 30.7 ¿QUÉ TAN INCÓMODO ERA ESTO? | BC10: 30.8 ¿CUÁNTO INTERFIRIÓ CON SU HABILIDAD PARA TRABAJAR? | BD10: 31.1 LOCALIZACIÓN DE LOS SÍNTOMAS | BE10: 31.2 GENERALMENTE SE PRESENTA COMO | BF10: 31.3 LOS SÍNTOMAS SE PRESENTAN CUANDO | BG10: 31.4 LOS TENGO DESDE HACE | BH10: 31.5 PERMANECEN POR | BI10: 31.6 INTENSIDAD DEL DOLOR | BJ10: 31.6.1 GRUPO INTENSIDAD DEL DOLOR | BK10: 31.7 ¿QUÉ TAN INCÓMODO ERA ESTO? | BL10: 31.8 ¿CUÁNTO INTERFIRIÓ CON SU HABILIDAD PARA TRABAJAR? | BM10: 31.1 LOCALIZACIÓN DE LOS SÍNTOMAS | BN10: 32.2 GENERALMENTE SE PRESENTA COMO | BO10: 32.3 LOS SÍNTOMAS SE PRESENTAN CUANDO | BP10: 32.4 LOS TENGO DESDE HACE | BQ10: 32.5 PERMANECEN POR | BR10: 32.6 INTENSIDAD DEL DOLOR | BS10: 32.6.1 GRUPO INTENSIDAD DEL DOLOR | BT10: 32.7 ¿QUÉ TAN INCÓMODO ERA ESTO? | BU10: 32.8 ¿CUÁNTO INTERFIRIÓ CON SU HABILIDAD PARA TRABAJAR? | BV10: 33.1 LOCALIZACIÓN DE LOS SÍNTOMAS | BW10: 33.2 GENERALMENTE SE PRESENTA COMO | BX10: 33.3 LOS SÍNTOMAS SE PRESENTAN CUANDO | BY10: 33.4 LOS TENGO DESDE HACE | BZ10: 33.5 PERMANECEN POR | CA10: 33.6 INTENSIDAD DEL DOLOR | CB10: 33.6.1 GRUPO INTENSIDAD DEL DOLOR | CC10: 33.7 ¿QUÉ TAN INCÓMODO ERA ESTO? | CD10: 33.8 ¿CUÁNTO INTERFIRIÓ CON SU HABILIDAD PARA TRABAJAR? | CE10: 34.1 LOCALIZACIÓN DE LOS SÍNTOMAS | CF10: 34.2 GENERALMENTE SE PRESENTA COMO | CG10: 34.3 LOS SÍNTOMAS SE PRESENTAN CUANDO | CH10: 34.4 LOS TENGO DESDE HACE | CI10: 34.5 PERMANECEN POR | CJ10: 34.6 INTENSIDAD DEL DOLOR | CK10: 34.6.1 GRUPO INTENSIDAD DEL DOLOR | CL10: 34.7 ¿QUÉ TAN INCÓMODO ERA ESTO? | CM10: 34.8 ¿CUÁNTO INTERFIRIÓ CON SU HABILIDAD PARA TRABAJAR? | CN10: 35.1 LOCALIZACIÓN DE LOS SÍNTOMAS | CO10: 35.2 GENERALMENTE SE PRESENTA COMO | CP10: 35.3 LOS SÍNTOMAS SE PRESENTAN CUANDO | CQ10: 35.4 LOS TENGO DESDE HACE | CR10: 35.5 PERMANECEN POR | CS10: 35.6 INTENSIDAD DEL DOLOR | CT10: 35.6.1 GRUPO INTENSIDAD DEL DOLOR | CU10: 35.7 ¿QUÉ TAN INCÓMODO ERA ESTO? | CV10: 35.8 ¿CUÁNTO INTERFIRIÓ CON SU HABILIDAD PARA TRABAJAR? | CW10: 36.1 LOCALIZACIÓN DE LOS SÍNTOMAS | CX10: 36.2 GENERALMENTE SE PRESENTA COMO | CY10: 36.3 LOS SÍNTOMAS SE PRESENTAN CUANDO | CZ10: 36.4 LOS TENGO DESDE HACE | DA10: 36.5 PERMANECEN POR | DB10: 36.6 INTENSIDAD DEL DOLOR | DC10: 36.6.1 GRUPO INTENSIDAD DEL DOLOR | DD10: 36.7 ¿QUÉ TAN INCÓMODO ERA ESTO? | DE10: 36.8 ¿CUÁNTO INTERFIRIÓ CON SU HABILIDAD PARA TRABAJAR? | DF10: 37.1 LOCALIZACIÓN DE LOS SÍNTOMAS | DG10: 37.2 GENERALMENTE SE PRESENTA COMO | DH10: 37.3 LOS SÍNTOMAS SE PRESENTAN CUANDO | DI10: 37.4 LOS TENGO DESDE HACE | DJ10: 37.5 PERMANECEN POR | DK10: 37.6 INTENSIDAD DEL DOLOR | DL10: 37.6.1 GRUPO INTENSIDAD DEL DOLOR | DM10: 37.7 ¿QUÉ TAN INCÓMODO ERA ESTO? | DN10: 37.8 ¿CUÁNTO INTERFIRIÓ CON SU HABILIDAD PARA TRABAJAR? | DO10: 38.1 LOCALIZACIÓN DE LOS SÍNTOMAS | DP10: 38.2 GENERALMENTE SE PRESENTA COMO | DQ10: 38.3 LOS SÍNTOMAS SE PRESENTAN CUANDO | DR10: 38.4 LOS TENGO DESDE HACE | DS10: 38.5 PERMANECEN POR | DT10: 38.6 INTENSIDAD DEL DOLOR | DU10: 38.6.1 GRUPO INTENSIDAD DEL DOLOR | DV10: 38.7 ¿QUÉ TAN INCÓMODO ERA ESTO? | DW10: 38.8 ¿CUÁNTO INTERFIRIÓ CON SU HABILIDAD PARA TRABAJAR? | DX10: 39.1 LOCALIZACIÓN DE LOS SÍNTOMAS | DY10: 39.2 GENERALMENTE SE PRESENTA COMO | DZ10: 39.3 LOS SÍNTOMAS SE PRESENTAN CUANDO | EA10: 39.4 LOS TENGO DESDE HACE | EB10: 39.5 PERMANECEN POR | EC10: 39.6 INTENSIDAD DEL DOLOR | ED10: 39.6.1 GRUPO INTENSIDAD DEL DOLOR | EE10: 39.7 ¿QUÉ TAN INCÓMODO ERA ESTO? | EF10: 39.8 ¿CUÁNTO INTERFIRIÓ CON SU HABILIDAD PARA TRABAJAR? | EG10: 40.1 LOCALIZACIÓN DE LOS SÍNTOMAS | EH10: 40.2 GENERALMENTE SE PRESENTA COMO | EI10: 40.3 LOS SÍNTOMAS SE PRESENTAN CUANDO | EJ10: 40.4 LOS TENGO DESDE HACE | EK10: 40.5 PERMANECEN POR | EL10: 40.6 INTENSIDAD DEL DOLOR | EM10: 40.6.1 GRUPO INTENSIDAD DEL DOLOR | EN10: 40.7 ¿QUÉ TAN INCÓMODO ERA ESTO? | EO10: 40.8 ¿CUÁNTO INTERFIRIÓ CON SU HABILIDAD PARA TRABAJAR? | EP10: 41.1 LOCALIZACIÓN DE LOS SÍNTOMAS | EQ10: 41.2 GENERALMENTE SE PRESENTA COMO | ER10: 41.3 LOS SÍNTOMAS SE PRESENTAN CUANDO | ES10: 41.4 LOS TENGO DESDE HACE | ET10: 41.5 PERMANECEN POR | EU10: 41.6 INTENSIDAD DEL DOLOR | EV10: 41.6.1 GRUPO INTENSIDAD DEL DOLOR | EW10: 41.7 ¿QUÉ TAN INCÓMODO ERA ESTO? | EX10: 41.8 ¿CUÁNTO INTERFIRIÓ CON SU HABILIDAD PARA TRABAJAR? | EY10: 42.1 LOCALIZACIÓN DE LOS SÍNTOMAS | EZ10: 42.2 GENERALMENTE SE PRESENTA COMO | FA10: 42.3 LOS SÍNTOMAS SE PRESENTAN CUANDO | FB10: 42.4 LOS TENGO DESDE HACE | FC10: 42.5 PERMANECEN POR | FD10: 42.6 INTENSIDAD DEL DOLOR | FE10: 42.6.1 GRUPO INTENSIDAD DEL DOLOR | FF10: 42.7 ¿QUÉ TAN INCÓMODO ERA ESTO? | FG10: 42.8 ¿CUÁNTO INTERFIRIÓ CON SU HABILIDAD PARA TRABAJAR? | FH10: 43.1 LOCALIZACIÓN DE LOS SÍNTOMAS | FI10: 43.2 GENERALMENTE SE PRESENTA COMO | FJ10: 43.3 LOS SÍNTOMAS SE PRESENTAN CUANDO | FK10: 43.4 LOS TENGO DESDE HACE | FL10: 43.5 PERMANECEN POR | FM10: 43.6 INTENSIDAD DEL DOLOR | FN10: 43.6.1 GRUPO INTENSIDAD DEL DOLOR | FO10: 43.7 ¿QUÉ TAN INCÓMODO ERA ESTO? | FP10: 43.8 ¿CUÁNTO INTERFIRIÓ CON SU HABILIDAD PARA TRABAJAR? | FQ10: 44. ¿EL TRABAJADOR PRESENTA SÍNTOMAS EN MÁS DE CINCO PARTES DEL CUERPO?
I11: Seleccione | J11: 33 | K11: 1.3 | L11: =J11/(K11*K11) -> 19.52662722 | M11: =IF(AND(L11>18.45,L11<25),"RANGO NORMAL",IF(AND(L11>24.9,L11<30),"SOBREPESO",IF(AND(L11>29.9,L11<35),"OBESIDAD GRADO I",IF(AND(L11>34.9,L11<40),"OBESIDAD GRADO II",IF(L11>39.9,"OBESIDAD GRADO III",IF(L11<18.5,"BAJO PESO","SELECCIONE")))))) -> RANGO NORMAL | N11: 15 | O11: =IF(AND(N11>14,N11<26)," ≤ 18 a 25 años",IF(AND(N11>25,N11<36),"26 a 35 años",IF(AND(N11>35,N11<46),"36 a 45 años",IF(AND(N11>45,N11<56),"46 a 55 años",IF(AND(N11>=56,N11<120),"≥ 56 años","SELECCIONE"))))) -> ≤ 18 a 25 años | P11: Seleccione | S11: 12 | T11: =IF(S11<1,"Menos de 1 año",IF(AND(S11>=1,S11<6),"1 a 5 años",IF(AND(S11>5,S11<11),"6 a 10 años",IF(AND(S11>10,S11<16),"11 a 15 años",IF(AND(S11>=16,S11<60),"16 años en adelante","SELECCIONE"))))) -> 11 a 15 años | U11: Sí | V11: 2 | W11: =IF(AND(V11>=1,V11<6),"1 a 5 cigarrillos",IF(AND(V11>5,V11<16),"6 a 15 cigarrillos",IF(AND(V11=16,V11<100),"16 y más cigarrillos","SELECCIONE"))) -> 1 a 5 cigarrillos | X11: 1 | Y11: =IF(X11<1,"Menos de 1 año",IF(AND(X11>=1,X11<3),"1 a 2 años",IF(AND(X11>2,X11<5),"3 a 4 años",IF(AND(X11>4,X11<10),"5 a 9 años",IF(AND(X11>=10,X11<100),"10 años en adelante","SELECCIONE"))))) -> 1 a 2 años | Z11: No | AB11: Seleccione | AC11: Seleccione | AD11: Seleccione | AE11: Seleccione | AF11: =IF(AND(AE11>=1,AE11<5),"1 a 4 horas",IF(AND(AE11>4,AE11<9),"5 a 8 horas",IF(AND(AE11>8,AE11<13),"9 a 12 horas",IF(AND(AE11>12,AE11<24),"Más de 12 horas","SELECCIONE")))) -> SELECCIONE | AG11: Seleccione | AI11: No | AJ11: No | AL11: Cuello lado derecho | AM11: Dolor | AN11: Al realizar mi trabajo | AO11: 1 semana | AP11: Menos de 24 horas | AQ11: 3 | AR11: =IF(AND(AQ11>0,AQ11<4),"BAJO",IF(AND(AQ11>3,AQ11<8),"MEDIO",IF(AND(AQ11>7,AQ11<11),"ALTO","SELECCIONE"))) -> BAJO | AS11: Un poco incómodo | AT11: Poca interferencia | AU11: Seleccione | AV11: Seleccione | AW11: Seleccione | AX11: Seleccione | AY11: Seleccione | AZ11: Seleccione | BA11: =IF(AND(AZ11>0,AZ11<4),"BAJO",IF(AND(AZ11>3,AZ11<8),"MEDIO",IF(AND(AZ11>7,AZ11<11),"ALTO","SELECCIONE"))) -> SELECCIONE | BB11: Seleccione | BC11: Seleccione | BD11: Seleccione | BE11: Seleccione | BF11: Seleccione | BG11: Seleccione | BH11: Seleccione | BI11: Seleccione | BJ11: =IF(AND(BI11>0,BI11<4),"BAJO",IF(AND(BI11>3,BI11<8),"MEDIO",IF(AND(BI11>7,BI11<11),"ALTO","SELECCIONE"))) -> SELECCIONE | BK11: Seleccione | BL11: Seleccione | BM11: Seleccione | BN11: Seleccione | BO11: Seleccione | BP11: Seleccione | BQ11: Seleccione | BR11: Seleccione | BS11: =IF(AND(BR11>0,BR11<4),"BAJO",IF(AND(BR11>3,BR11<8),"MEDIO",IF(AND(BR11>7,BR11<11),"ALTO","SELECCIONE"))) -> SELECCIONE | BT11: Seleccione | BU11: Seleccione | BV11: Seleccione | BW11: Seleccione | BX11: Seleccione | BY11: Seleccione | BZ11: Seleccione | CA11: Seleccione | CB11: =IF(AND(CA11>0,CA11<4),"BAJO",IF(AND(CA11>3,CA11<8),"MEDIO",IF(AND(CA11>7,CA11<11),"ALTO","SELECCIONE"))) -> SELECCIONE | CC11: Seleccione | CD11: Seleccione | CE11: Seleccione | CF11: Seleccione | CG11: Seleccione | CH11: Seleccione | CI11: Seleccione | CJ11: Seleccione | CK11: =IF(AND(CJ11>0,CJ11<4),"BAJO",IF(AND(CJ11>3,CJ11<8),"MEDIO",IF(AND(CJ11>7,CJ11<11),"ALTO","SELECCIONE"))) -> SELECCIONE | CL11: Seleccione | CM11: Seleccione | CN11: Seleccione | CO11: Seleccione | CP11: Seleccione | CQ11: Seleccione | CR11: Seleccione | CS11: Seleccione | CT11: =IF(AND(CS11>0,CS11<4),"BAJO",IF(AND(CS11>3,CS11<8),"MEDIO",IF(AND(CS11>7,CS11<11),"ALTO","SELECCIONE"))) -> SELECCIONE | CU11: Seleccione | CV11: Seleccione | CW11: Seleccione | CX11: Seleccione | CY11: Seleccione | CZ11: Seleccione | DA11: Seleccione | DB11: Seleccione | DC11: =IF(AND(DB11>0,DB11<4),"BAJO",IF(AND(DB11>3,DB11<8),"MEDIO",IF(AND(DB11>7,DB11<11),"ALTO","SELECCIONE"))) -> SELECCIONE | DD11: Seleccione | DE11: Seleccione | DF11: Seleccione | DG11: Seleccione | DH11: Seleccione | DI11: Seleccione | DJ11: Seleccione | DK11: Seleccione | DL11: =IF(AND(DK11>0,DK11<4),"BAJO",IF(AND(DK11>3,DK11<8),"MEDIO",IF(AND(DK11>7,DK11<11),"ALTO","SELECCIONE"))) -> SELECCIONE | DM11: Seleccione | DN11: Seleccione | DO11: Seleccione | DP11: Seleccione | DQ11: Seleccione | DR11: Seleccione | DS11: Seleccione | DT11: Seleccione | DU11: =IF(AND(DT11>0,DT11<4),"BAJO",IF(AND(DT11>3,DT11<8),"MEDIO",IF(AND(DT11>7,DT11<11),"ALTO","SELECCIONE"))) -> SELECCIONE | DV11: Seleccione | DW11: Seleccione | DX11: Seleccione | DY11: Seleccione | DZ11: Seleccione | EA11: Seleccione | EB11: Seleccione | EC11: Seleccione | ED11: =IF(AND(EC11>0,EC11<4),"BAJO",IF(AND(EC11>3,EC11<8),"MEDIO",IF(AND(EC11>7,EC11<11),"ALTO","SELECCIONE"))) -> SELECCIONE | EE11: Seleccione | EF11: Seleccione | EG11: Seleccione | EH11: Seleccione | EI11: Seleccione | EJ11: Seleccione | EK11: Seleccione | EL11: Seleccione | EM11: =IF(AND(EL11>0,EL11<4),"BAJO",IF(AND(EL11>3,EL11<8),"MEDIO",IF(AND(EL11>7,EL11<11),"ALTO","SELECCIONE"))) -> SELECCIONE | EN11: Seleccione | EO11: Seleccione | EP11: Seleccione | EQ11: Seleccione | ER11: Seleccione | ES11: Seleccione | ET11: Seleccione | EU11: Seleccione | EV11: =IF(AND(EU11>0,EU11<4),"BAJO",IF(AND(EU11>3,EU11<8),"MEDIO",IF(AND(EU11>7,EU11<11),"ALTO","SELECCIONE"))) -> SELECCIONE | EW11: Seleccione | EX11: Seleccione | EY11: Seleccione | EZ11: Seleccione | FA11: Seleccione | FB11: Seleccione | FC11: Seleccione | FD11: Seleccione | FE11: =IF(AND(FD11>0,FD11<4),"BAJO",IF(AND(FD11>3,FD11<8),"MEDIO",IF(AND(FD11>7,FD11<11),"ALTO","SELECCIONE"))) -> SELECCIONE | FF11: Seleccione | FG11: Seleccione | FH11: Seleccione | FI11: Seleccione | FJ11: Seleccione | FK11: Seleccione | FL11: Seleccione | FM11: Seleccione | FN11: =IF(AND(FM11>0,FM11<4),"BAJO",IF(AND(FM11>3,FM11<8),"MEDIO",IF(AND(FM11>7,FM11<11),"ALTO","SELECCIONE"))) -> SELECCIONE | FO11: Seleccione | FP11: Seleccione | FQ11: Seleccione
I12: Seleccione | J12: 30 | K12: Seleccione | L12: =J12/(K12*K12) ->  | M12: =IF(AND(L12>18.45,L12<25),"RANGO NORMAL",IF(AND(L12>24.9,L12<30),"SOBREPESO",IF(AND(L12>29.9,L12<35),"OBESIDAD GRADO I",IF(AND(L12>34.9,L12<40),"OBESIDAD GRADO II",IF(L12>39.9,"OBESIDAD GRADO III",IF(L12<18.5,"BAJO PESO","SELECCIONE")))))) ->  | N12: 23 | O12: =IF(AND(N12>14,N12<26)," ≤ 18 a 25 años",IF(AND(N12>25,N12<36),"26 a 35 años",IF(AND(N12>35,N12<46),"36 a 45 años",IF(AND(N12>45,N12<56),"46 a 55 años",IF(AND(N12>=56,N12<120),"≥ 56 años","SELECCIONE"))))) -> ≤ 18 a 25 años | P12: Seleccione | S12: Seleccione | T12: SELECCIONE | U12: Seleccione | V12: Seleccione | W12: =IF(AND(V12>=1,V12<6),"1 a 5 cigarrillos",IF(AND(V12>5,V12<16),"6 a 15 cigarrillos",IF(AND(V12=16,V12<100),"16 y más cigarrillos","SELECCIONE"))) -> SELECCIONE | X12: Seleccione | Y12: SELECCIONE | Z12: Seleccione | AB12: Seleccione | AC12: Seleccione | AD12: Seleccione | AE12: Seleccione | AF12: SELECCIONE | AG12: Seleccione | AI12: Seleccione | AJ12: Seleccione | AL12: Seleccione | AM12: Seleccione | AN12: Seleccione | AO12: Seleccione | AP12: Seleccione | AQ12: Seleccione | AR12: =IF(AND(AQ12>0,AQ12<4),"BAJO",IF(AND(AQ12>3,AQ12<8),"MEDIO",IF(AND(AQ12>7,AQ12<11),"ALTO","SELECCIONE"))) -> SELECCIONE | AS12: Seleccione | AT12: Seleccione | AU12: Seleccione | AV12: Seleccione | AW12: Seleccione | AX12: Seleccione | AY12: Seleccione | AZ12: Seleccione | BA12: =IF(AND(AZ12>0,AZ12<4),"BAJO",IF(AND(AZ12>3,AZ12<8),"MEDIO",IF(AND(AZ12>7,AZ12<11),"ALTO","SELECCIONE"))) -> SELECCIONE | BB12: Seleccione | BC12: Seleccione | BD12: Seleccione | BE12: Seleccione | BF12: Seleccione | BG12: Seleccione | BH12: Seleccione | BI12: Seleccione | BJ12: =IF(AND(BI12>0,BI12<4),"BAJO",IF(AND(BI12>3,BI12<8),"MEDIO",IF(AND(BI12>7,BI12<11),"ALTO","SELECCIONE"))) -> SELECCIONE | BK12: Seleccione | BL12: Seleccione | BM12: Seleccione | BN12: Seleccione | BO12: Seleccione | BP12: Seleccione | BQ12: Seleccione | BR12: Seleccione | BS12: =IF(AND(BR12>0,BR12<4),"BAJO",IF(AND(BR12>3,BR12<8),"MEDIO",IF(AND(BR12>7,BR12<11),"ALTO","SELECCIONE"))) -> SELECCIONE | BT12: Seleccione | BU12: Seleccione | BV12: Seleccione | BW12: Seleccione | BX12: Seleccione | BY12: Seleccione | BZ12: Seleccione | CA12: Seleccione | CB12: =IF(AND(CA12>0,CA12<4),"BAJO",IF(AND(CA12>3,CA12<8),"MEDIO",IF(AND(CA12>7,CA12<11),"ALTO","SELECCIONE"))) -> SELECCIONE | CC12: Seleccione | CD12: Seleccione | CE12: Seleccione | CF12: Seleccione | CG12: Seleccione | CH12: Seleccione | CI12: Seleccione | CJ12: Seleccione | CK12: =IF(AND(CJ12>0,CJ12<4),"BAJO",IF(AND(CJ12>3,CJ12<8),"MEDIO",IF(AND(CJ12>7,CJ12<11),"ALTO","SELECCIONE"))) -> SELECCIONE | CL12: Seleccione | CM12: Seleccione | CN12: Seleccione | CO12: Seleccione | CP12: Seleccione | CQ12: Seleccione | CR12: Seleccione | CS12: Seleccione | CT12: =IF(AND(CS12>0,CS12<4),"BAJO",IF(AND(CS12>3,CS12<8),"MEDIO",IF(AND(CS12>7,CS12<11),"ALTO","SELECCIONE"))) -> SELECCIONE | CU12: Seleccione | CV12: Seleccione | CW12: Seleccione | CX12: Seleccione | CY12: Seleccione | CZ12: Seleccione | DA12: Seleccione | DB12: Seleccione | DC12: =IF(AND(DB12>0,DB12<4),"BAJO",IF(AND(DB12>3,DB12<8),"MEDIO",IF(AND(DB12>7,DB12<11),"ALTO","SELECCIONE"))) -> SELECCIONE | DD12: Seleccione | DE12: Seleccione | DF12: Seleccione | DG12: Seleccione | DH12: Seleccione | DI12: Seleccione | DJ12: Seleccione | DK12: Seleccione | DL12: =IF(AND(DK12>0,DK12<4),"BAJO",IF(AND(DK12>3,DK12<8),"MEDIO",IF(AND(DK12>7,DK12<11),"ALTO","SELECCIONE"))) -> SELECCIONE | DM12: Seleccione | DN12: Seleccione | DO12: Seleccione | DP12: Seleccione | DQ12: Seleccione | DR12: Seleccione | DS12: Seleccione | DT12: Seleccione | DU12: =IF(AND(DT12>0,DT12<4),"BAJO",IF(AND(DT12>3,DT12<8),"MEDIO",IF(AND(DT12>7,DT12<11),"ALTO","SELECCIONE"))) -> SELECCIONE | DV12: Seleccione | DW12: Seleccione | DX12: Seleccione | DY12: Seleccione | DZ12: Seleccione | EA12: Seleccione | EB12: Seleccione | EC12: Seleccione | ED12: =IF(AND(EC12>0,EC12<4),"BAJO",IF(AND(EC12>3,EC12<8),"MEDIO",IF(AND(EC12>7,EC12<11),"ALTO","SELECCIONE"))) -> SELECCIONE | EE12: Seleccione | EF12: Seleccione | EG12: Seleccione | EH12: Seleccione | EI12: Seleccione | EJ12: Seleccione | EK12: Seleccione | EL12: Seleccione | EM12: =IF(AND(EL12>0,EL12<4),"BAJO",IF(AND(EL12>3,EL12<8),"MEDIO",IF(AND(EL12>7,EL12<11),"ALTO","SELECCIONE"))) -> SELECCIONE | EN12: Seleccione | EO12: Seleccione | EP12: Seleccione | EQ12: Seleccione | ER12: Seleccione | ES12: Seleccione | ET12: Seleccione | EU12: Seleccione | EV12: =IF(AND(EU12>0,EU12<4),"BAJO",IF(AND(EU12>3,EU12<8),"MEDIO",IF(AND(EU12>7,EU12<11),"ALTO","SELECCIONE"))) -> SELECCIONE | EW12: Seleccione | EX12: Seleccione | EY12: Seleccione | EZ12: Seleccione | FA12: Seleccione | FB12: Seleccione | FC12: Seleccione | FD12: Seleccione | FE12: =IF(AND(FD12>0,FD12<4),"BAJO",IF(AND(FD12>3,FD12<8),"MEDIO",IF(AND(FD12>7,FD12<11),"ALTO","SELECCIONE"))) -> SELECCIONE | FF12: Seleccione | FG12: Seleccione | FH12: Seleccione | FI12: Seleccione | FJ12: Seleccione | FK12: Seleccione | FL12: Seleccione | FM12: Seleccione | FN12: =IF(AND(FM12>0,FM12<4),"BAJO",IF(AND(FM12>3,FM12<8),"MEDIO",IF(AND(FM12>7,FM12<11),"ALTO","SELECCIONE"))) -> SELECCIONE | FO12: Seleccione | FP12: Seleccione | FQ12: Seleccione
I13: Seleccione | J13: 30 | K13: Seleccione | L13: =J13/(K13*K13) ->  | N13: 26 | O13: 26 a 35 años | P13: Seleccione | S13: Seleccione | T13: SELECCIONE | U13: Seleccione | V13: Seleccione | W13: SELECCIONE | X13: Seleccione | Y13: SELECCIONE | Z13: Seleccione | AB13: Seleccione | AC13: Seleccione | AD13: Seleccione | AE13: Seleccione | AF13: SELECCIONE | AG13: Seleccione | AI13: Seleccione | AJ13: Seleccione | AL13: Seleccione | AM13: Seleccione | AN13: Seleccione | AO13: Seleccione | AP13: Seleccione | AQ13: Seleccione | AR13: =IF(AND(AQ13>0,AQ13<4),"BAJO",IF(AND(AQ13>3,AQ13<8),"MEDIO",IF(AND(AQ13>7,AQ13<11),"ALTO","SELECCIONE"))) -> SELECCIONE | AS13: Seleccione | AT13: Seleccione | AU13: Seleccione | AV13: Seleccione | AW13: Seleccione | AX13: Seleccione | AY13: Seleccione | AZ13: Seleccione | BA13: =IF(AND(AZ13>0,AZ13<4),"BAJO",IF(AND(AZ13>3,AZ13<8),"MEDIO",IF(AND(AZ13>7,AZ13<11),"ALTO","SELECCIONE"))) -> SELECCIONE | BB13: Seleccione | BC13: Seleccione | BD13: Seleccione | BE13: Seleccione | BF13: Seleccione | BG13: Seleccione | BH13: Seleccione | BI13: Seleccione | BJ13: =IF(AND(BI13>0,BI13<4),"BAJO",IF(AND(BI13>3,BI13<8),"MEDIO",IF(AND(BI13>7,BI13<11),"ALTO","SELECCIONE"))) -> SELECCIONE | BK13: Seleccione | BL13: Seleccione | BM13: Seleccione | BN13: Seleccione | BO13: Seleccione | BP13: Seleccione | BQ13: Seleccione | BR13: Seleccione | BS13: =IF(AND(BR13>0,BR13<4),"BAJO",IF(AND(BR13>3,BR13<8),"MEDIO",IF(AND(BR13>7,BR13<11),"ALTO","SELECCIONE"))) -> SELECCIONE | BT13: Seleccione | BU13: Seleccione | BV13: Seleccione | BW13: Seleccione | BX13: Seleccione | BY13: Seleccione | BZ13: Seleccione | CA13: Seleccione | CB13: =IF(AND(CA13>0,CA13<4),"BAJO",IF(AND(CA13>3,CA13<8),"MEDIO",IF(AND(CA13>7,CA13<11),"ALTO","SELECCIONE"))) -> SELECCIONE | CC13: Seleccione | CD13: Seleccione | CE13: Seleccione | CF13: Seleccione | CG13: Seleccione | CH13: Seleccione | CI13: Seleccione | CJ13: Seleccione | CK13: =IF(AND(CJ13>0,CJ13<4),"BAJO",IF(AND(CJ13>3,CJ13<8),"MEDIO",IF(AND(CJ13>7,CJ13<11),"ALTO","SELECCIONE"))) -> SELECCIONE | CL13: Seleccione | CM13: Seleccione | CN13: Seleccione | CO13: Seleccione | CP13: Seleccione | CQ13: Seleccione | CR13: Seleccione | CS13: Seleccione | CT13: =IF(AND(CS13>0,CS13<4),"BAJO",IF(AND(CS13>3,CS13<8),"MEDIO",IF(AND(CS13>7,CS13<11),"ALTO","SELECCIONE"))) -> SELECCIONE | CU13: Seleccione | CV13: Seleccione | CW13: Seleccione | CX13: Seleccione | CY13: Seleccione | CZ13: Seleccione | DA13: Seleccione | DB13: Seleccione | DC13: =IF(AND(DB13>0,DB13<4),"BAJO",IF(AND(DB13>3,DB13<8),"MEDIO",IF(AND(DB13>7,DB13<11),"ALTO","SELECCIONE"))) -> SELECCIONE | DD13: Seleccione | DE13: Seleccione | DF13: Seleccione | DG13: Seleccione | DH13: Seleccione | DI13: Seleccione | DJ13: Seleccione | DK13: Seleccione | DL13: =IF(AND(DK13>0,DK13<4),"BAJO",IF(AND(DK13>3,DK13<8),"MEDIO",IF(AND(DK13>7,DK13<11),"ALTO","SELECCIONE"))) -> SELECCIONE | DM13: Seleccione | DN13: Seleccione | DO13: Seleccione | DP13: Seleccione | DQ13: Seleccione | DR13: Seleccione | DS13: Seleccione | DT13: Seleccione | DU13: =IF(AND(DT13>0,DT13<4),"BAJO",IF(AND(DT13>3,DT13<8),"MEDIO",IF(AND(DT13>7,DT13<11),"ALTO","SELECCIONE"))) -> SELECCIONE | DV13: Seleccione | DW13: Seleccione | DX13: Seleccione | DY13: Seleccione | DZ13: Seleccione | EA13: Seleccione | EB13: Seleccione | EC13: Seleccione | ED13: =IF(AND(EC13>0,EC13<4),"BAJO",IF(AND(EC13>3,EC13<8),"MEDIO",IF(AND(EC13>7,EC13<11),"ALTO","SELECCIONE"))) -> SELECCIONE | EE13: Seleccione | EF13: Seleccione | EG13: Seleccione | EH13: Seleccione | EI13: Seleccione | EJ13: Seleccione | EK13: Seleccione | EL13: Seleccione | EM13: =IF(AND(EL13>0,EL13<4),"BAJO",IF(AND(EL13>3,EL13<8),"MEDIO",IF(AND(EL13>7,EL13<11),"ALTO","SELECCIONE"))) -> SELECCIONE | EN13: Seleccione | EO13: Seleccione | EP13: Seleccione | EQ13: Seleccione | ER13: Seleccione | ES13: Seleccione | ET13: Seleccione | EU13: Seleccione | EV13: =IF(AND(EU13>0,EU13<4),"BAJO",IF(AND(EU13>3,EU13<8),"MEDIO",IF(AND(EU13>7,EU13<11),"ALTO","SELECCIONE"))) -> SELECCIONE | EW13: Seleccione | EX13: Seleccione | EY13: Seleccione | EZ13: Seleccione | FA13: Seleccione | FB13: Seleccione | FC13: Seleccione | FD13: Seleccione | FE13: =IF(AND(FD13>0,FD13<4),"BAJO",IF(AND(FD13>3,FD13<8),"MEDIO",IF(AND(FD13>7,FD13<11),"ALTO","SELECCIONE"))) -> SELECCIONE | FF13: Seleccione | FG13: Seleccione | FH13: Seleccione | FI13: Seleccione | FJ13: Seleccione | FK13: Seleccione | FL13: Seleccione | FM13: Seleccione | FN13: =IF(AND(FM13>0,FM13<4),"BAJO",IF(AND(FM13>3,FM13<8),"MEDIO",IF(AND(FM13>7,FM13<11),"ALTO","SELECCIONE"))) -> SELECCIONE | FO13: Seleccione | FP13: Seleccione | FQ13: Seleccione
I14: Seleccione | J14: 30 | K14: Seleccione | L14: =J14/(K14*K14) ->  | N14: 65 | O14: ≥ 56 años | P14: Seleccione | S14: Seleccione | T14: SELECCIONE | U14: Seleccione | V14: Seleccione | W14: SELECCIONE | X14: Seleccione | Y14: SELECCIONE | Z14: Seleccione | AB14: Seleccione | AC14: Seleccione | AD14: Seleccione | AE14: Seleccione | AF14: SELECCIONE | AG14: Seleccione | AI14: Seleccione | AJ14: Seleccione | AL14: Seleccione | AM14: Seleccione | AN14: Seleccione | AO14: Seleccione | AP14: Seleccione | AQ14: Seleccione | AR14: =IF(AND(AQ14>0,AQ14<4),"BAJO",IF(AND(AQ14>3,AQ14<8),"MEDIO",IF(AND(AQ14>7,AQ14<11),"ALTO","SELECCIONE"))) -> SELECCIONE | AS14: Seleccione | AT14: Seleccione | AU14: Seleccione | AV14: Seleccione | AW14: Seleccione | AX14: Seleccione | AY14: Seleccione | AZ14: Seleccione | BA14: =IF(AND(AZ14>0,AZ14<4),"BAJO",IF(AND(AZ14>3,AZ14<8),"MEDIO",IF(AND(AZ14>7,AZ14<11),"ALTO","SELECCIONE"))) -> SELECCIONE | BB14: Seleccione | BC14: Seleccione | BD14: Seleccione | BE14: Seleccione | BF14: Seleccione | BG14: Seleccione | BH14: Seleccione | BI14: Seleccione | BJ14: =IF(AND(BI14>0,BI14<4),"BAJO",IF(AND(BI14>3,BI14<8),"MEDIO",IF(AND(BI14>7,BI14<11),"ALTO","SELECCIONE"))) -> SELECCIONE | BK14: Seleccione | BL14: Seleccione | BM14: Seleccione | BN14: Seleccione | BO14: Seleccione | BP14: Seleccione | BQ14: Seleccione | BR14: Seleccione | BS14: =IF(AND(BR14>0,BR14<4),"BAJO",IF(AND(BR14>3,BR14<8),"MEDIO",IF(AND(BR14>7,BR14<11),"ALTO","SELECCIONE"))) -> SELECCIONE | BT14: Seleccione | BU14: Seleccione | BV14: Seleccione | BW14: Seleccione | BX14: Seleccione | BY14: Seleccione | BZ14: Seleccione | CA14: Seleccione | CB14: =IF(AND(CA14>0,CA14<4),"BAJO",IF(AND(CA14>3,CA14<8),"MEDIO",IF(AND(CA14>7,CA14<11),"ALTO","SELECCIONE"))) -> SELECCIONE | CC14: Seleccione | CD14: Seleccione | CE14: Seleccione | CF14: Seleccione | CG14: Seleccione | CH14: Seleccione | CI14: Seleccione | CJ14: Seleccione | CK14: =IF(AND(CJ14>0,CJ14<4),"BAJO",IF(AND(CJ14>3,CJ14<8),"MEDIO",IF(AND(CJ14>7,CJ14<11),"ALTO","SELECCIONE"))) -> SELECCIONE | CL14: Seleccione | CM14: Seleccione | CN14: Seleccione | CO14: Seleccione | CP14: Seleccione | CQ14: Seleccione | CR14: Seleccione | CS14: Seleccione | CT14: =IF(AND(CS14>0,CS14<4),"BAJO",IF(AND(CS14>3,CS14<8),"MEDIO",IF(AND(CS14>7,CS14<11),"ALTO","SELECCIONE"))) -> SELECCIONE | CU14: Seleccione | CV14: Seleccione | CW14: Seleccione | CX14: Seleccione | CY14: Seleccione | CZ14: Seleccione | DA14: Seleccione | DB14: Seleccione | DC14: =IF(AND(DB14>0,DB14<4),"BAJO",IF(AND(DB14>3,DB14<8),"MEDIO",IF(AND(DB14>7,DB14<11),"ALTO","SELECCIONE"))) -> SELECCIONE | DD14: Seleccione | DE14: Seleccione | DF14: Seleccione | DG14: Seleccione | DH14: Seleccione | DI14: Seleccione | DJ14: Seleccione | DK14: Seleccione | DL14: =IF(AND(DK14>0,DK14<4),"BAJO",IF(AND(DK14>3,DK14<8),"MEDIO",IF(AND(DK14>7,DK14<11),"ALTO","SELECCIONE"))) -> SELECCIONE | DM14: Seleccione | DN14: Seleccione | DO14: Seleccione | DP14: Seleccione | DQ14: Seleccione | DR14: Seleccione | DS14: Seleccione | DT14: Seleccione | DU14: =IF(AND(DT14>0,DT14<4),"BAJO",IF(AND(DT14>3,DT14<8),"MEDIO",IF(AND(DT14>7,DT14<11),"ALTO","SELECCIONE"))) -> SELECCIONE | DV14: Seleccione | DW14: Seleccione | DX14: Seleccione | DY14: Seleccione | DZ14: Seleccione | EA14: Seleccione | EB14: Seleccione | EC14: Seleccione | ED14: =IF(AND(EC14>0,EC14<4),"BAJO",IF(AND(EC14>3,EC14<8),"MEDIO",IF(AND(EC14>7,EC14<11),"ALTO","SELECCIONE"))) -> SELECCIONE | EE14: Seleccione | EF14: Seleccione | EG14: Seleccione | EH14: Seleccione | EI14: Seleccione | EJ14: Seleccione | EK14: Seleccione | EL14: Seleccione | EM14: =IF(AND(EL14>0,EL14<4),"BAJO",IF(AND(EL14>3,EL14<8),"MEDIO",IF(AND(EL14>7,EL14<11),"ALTO","SELECCIONE"))) -> SELECCIONE | EN14: Seleccione | EO14: Seleccione | EP14: Seleccione | EQ14: Seleccione | ER14: Seleccione | ES14: Seleccione | ET14: Seleccione | EU14: Seleccione | EV14: =IF(AND(EU14>0,EU14<4),"BAJO",IF(AND(EU14>3,EU14<8),"MEDIO",IF(AND(EU14>7,EU14<11),"ALTO","SELECCIONE"))) -> SELECCIONE | EW14: Seleccione | EX14: Seleccione | EY14: Seleccione | EZ14: Seleccione | FA14: Seleccione | FB14: Seleccione | FC14: Seleccione | FD14: Seleccione | FE14: =IF(AND(FD14>0,FD14<4),"BAJO",IF(AND(FD14>3,FD14<8),"MEDIO",IF(AND(FD14>7,FD14<11),"ALTO","SELECCIONE"))) -> SELECCIONE | FF14: Seleccione | FG14: Seleccione | FH14: Seleccione | FI14: Seleccione | FJ14: Seleccione | FK14: Seleccione | FL14: Seleccione | FM14: Seleccione | FN14: =IF(AND(FM14>0,FM14<4),"BAJO",IF(AND(FM14>3,FM14<8),"MEDIO",IF(AND(FM14>7,FM14<11),"ALTO","SELECCIONE"))) -> SELECCIONE | FO14: Seleccione | FP14: Seleccione | FQ14: Seleccione
I15: Seleccione | J15: 30 | K15: Seleccione | L15: =J15/(K15*K15) ->  | N15: Seleccione | O15: SELECCIONE | P15: Seleccione | S15: Seleccione | T15: SELECCIONE | U15: Seleccione | V15: Seleccione | W15: SELECCIONE | X15: Seleccione | Y15: SELECCIONE | Z15: Seleccione | AB15: Seleccione | AC15: Seleccione | AD15: Seleccione | AE15: Seleccione | AF15: SELECCIONE | AG15: Seleccione | AI15: Seleccione | AJ15: Seleccione | AL15: Seleccione | AM15: Seleccione | AN15: Seleccione | AO15: Seleccione | AP15: Seleccione | AQ15: Seleccione | AR15: =IF(AND(AQ15>0,AQ15<4),"BAJO",IF(AND(AQ15>3,AQ15<8),"MEDIO",IF(AND(AQ15>7,AQ15<11),"ALTO","SELECCIONE"))) -> SELECCIONE | AS15: Seleccione | AT15: Seleccione | AU15: Seleccione | AV15: Seleccione | AW15: Seleccione | AX15: Seleccione | AY15: Seleccione | AZ15: Seleccione | BA15: =IF(AND(AZ15>0,AZ15<4),"BAJO",IF(AND(AZ15>3,AZ15<8),"MEDIO",IF(AND(AZ15>7,AZ15<11),"ALTO","SELECCIONE"))) -> SELECCIONE | BB15: Seleccione | BC15: Seleccione | BD15: Seleccione | BE15: Seleccione | BF15: Seleccione | BG15: Seleccione | BH15: Seleccione | BI15: Seleccione | BJ15: =IF(AND(BI15>0,BI15<4),"BAJO",IF(AND(BI15>3,BI15<8),"MEDIO",IF(AND(BI15>7,BI15<11),"ALTO","SELECCIONE"))) -> SELECCIONE | BK15: Seleccione | BL15: Seleccione | BM15: Seleccione | BN15: Seleccione | BO15: Seleccione | BP15: Seleccione | BQ15: Seleccione | BR15: Seleccione | BS15: =IF(AND(BR15>0,BR15<4),"BAJO",IF(AND(BR15>3,BR15<8),"MEDIO",IF(AND(BR15>7,BR15<11),"ALTO","SELECCIONE"))) -> SELECCIONE | BT15: Seleccione | BU15: Seleccione | BV15: Seleccione | BW15: Seleccione | BX15: Seleccione | BY15: Seleccione | BZ15: Seleccione | CA15: Seleccione | CB15: =IF(AND(CA15>0,CA15<4),"BAJO",IF(AND(CA15>3,CA15<8),"MEDIO",IF(AND(CA15>7,CA15<11),"ALTO","SELECCIONE"))) -> SELECCIONE | CC15: Seleccione | CD15: Seleccione | CE15: Seleccione | CF15: Seleccione | CG15: Seleccione | CH15: Seleccione | CI15: Seleccione | CJ15: Seleccione | CK15: =IF(AND(CJ15>0,CJ15<4),"BAJO",IF(AND(CJ15>3,CJ15<8),"MEDIO",IF(AND(CJ15>7,CJ15<11),"ALTO","SELECCIONE"))) -> SELECCIONE | CL15: Seleccione | CM15: Seleccione | CN15: Seleccione | CO15: Seleccione | CP15: Seleccione | CQ15: Seleccione | CR15: Seleccione | CS15: Seleccione | CT15: =IF(AND(CS15>0,CS15<4),"BAJO",IF(AND(CS15>3,CS15<8),"MEDIO",IF(AND(CS15>7,CS15<11),"ALTO","SELECCIONE"))) -> SELECCIONE | CU15: Seleccione | CV15: Seleccione | CW15: Seleccione | CX15: Seleccione | CY15: Seleccione | CZ15: Seleccione | DA15: Seleccione | DB15: Seleccione | DC15: =IF(AND(DB15>0,DB15<4),"BAJO",IF(AND(DB15>3,DB15<8),"MEDIO",IF(AND(DB15>7,DB15<11),"ALTO","SELECCIONE"))) -> SELECCIONE | DD15: Seleccione | DE15: Seleccione | DF15: Seleccione | DG15: Seleccione | DH15: Seleccione | DI15: Seleccione | DJ15: Seleccione | DK15: Seleccione | DL15: =IF(AND(DK15>0,DK15<4),"BAJO",IF(AND(DK15>3,DK15<8),"MEDIO",IF(AND(DK15>7,DK15<11),"ALTO","SELECCIONE"))) -> SELECCIONE | DM15: Seleccione | DN15: Seleccione | DO15: Seleccione | DP15: Seleccione | DQ15: Seleccione | DR15: Seleccione | DS15: Seleccione | DT15: Seleccione | DU15: =IF(AND(DT15>0,DT15<4),"BAJO",IF(AND(DT15>3,DT15<8),"MEDIO",IF(AND(DT15>7,DT15<11),"ALTO","SELECCIONE"))) -> SELECCIONE | DV15: Seleccione | DW15: Seleccione | DX15: Seleccione | DY15: Seleccione | DZ15: Seleccione | EA15: Seleccione | EB15: Seleccione | EC15: Seleccione | ED15: =IF(AND(EC15>0,EC15<4),"BAJO",IF(AND(EC15>3,EC15<8),"MEDIO",IF(AND(EC15>7,EC15<11),"ALTO","SELECCIONE"))) -> SELECCIONE | EE15: Seleccione | EF15: Seleccione | EG15: Seleccione | EH15: Seleccione | EI15: Seleccione | EJ15: Seleccione | EK15: Seleccione | EL15: Seleccione | EM15: =IF(AND(EL15>0,EL15<4),"BAJO",IF(AND(EL15>3,EL15<8),"MEDIO",IF(AND(EL15>7,EL15<11),"ALTO","SELECCIONE"))) -> SELECCIONE | EN15: Seleccione | EO15: Seleccione | EP15: Seleccione | EQ15: Seleccione | ER15: Seleccione | ES15: Seleccione | ET15: Seleccione | EU15: Seleccione | EV15: =IF(AND(EU15>0,EU15<4),"BAJO",IF(AND(EU15>3,EU15<8),"MEDIO",IF(AND(EU15>7,EU15<11),"ALTO","SELECCIONE"))) -> SELECCIONE | EW15: Seleccione | EX15: Seleccione | EY15: Seleccione | EZ15: Seleccione | FA15: Seleccione | FB15: Seleccione | FC15: Seleccione | FD15: Seleccione | FE15: =IF(AND(FD15>0,FD15<4),"BAJO",IF(AND(FD15>3,FD15<8),"MEDIO",IF(AND(FD15>7,FD15<11),"ALTO","SELECCIONE"))) -> SELECCIONE | FF15: Seleccione | FG15: Seleccione | FH15: Seleccione | FI15: Seleccione | FJ15: Seleccione | FK15: Seleccione | FL15: Seleccione | FM15: Seleccione | FN15: =IF(AND(FM15>0,FM15<4),"BAJO",IF(AND(FM15>3,FM15<8),"MEDIO",IF(AND(FM15>7,FM15<11),"ALTO","SELECCIONE"))) -> SELECCIONE | FO15: Seleccione | FP15: Seleccione | FQ15: Seleccione

Sheet Hoja2 (hidden)
H2: fumar
A3: Talla | B3: Peso | D3: Actividad física | H3: Seleccione | I3: jornada de trabajo | J3: horas que trabaja por día | L3: ANTIGÜEDAD CARGO | N3: CIGARRILLOS | O3: TIEMPO QUE FUMA | P3: Variable duración
A4: Seleccione | B4: Seleccione | D4: Seleccione | F4: Seleccione | H4: 1 a 5 cigarrillos | I4: Seleccione | J4: Seleccione | L4: Seleccione | N4: Seleccione | O4: Seleccione | P4: Seleccione | R4: Seleccione | U4: Seleccione | X4: Seleccione | Y4: Seleccione | AA4: Edad | AG4: Seleccione | AI4: Seleccione | AJ4: Seleccione | AK4: Seleccione | AL4: Seleccione | AM4: Seleccione | AN4: Seleccione | AP4: Seleccione
A5: 1.3 | B5: 30 | D5: Caminar | F5: Diario | H5: 6 a 15 cigarrillos | I5: 0-1 hora | J5: 1 | L5: 0 | N5: 1 | O5: 0 | P5: Sí | R5: Dolor | U5: Abejorral | X5: Diario | Y5: 15 min | AA5: Seleccione | AD5: Seleccione | AE5: Seleccione | AG5: Cuello lado derecho | AI5: Dolor | AJ5: Al realizar mi trabajo | AK5: 1 semana | AL5: Menos de 24 horas | AM5: Nada | AN5: No, en absoluto | AP5: Sí
A6: =A5+0.01 -> 1.31 | B6: =B5+0.1 -> 30.1 | D6: Trotar | F6: Dos veces a la semana | H6: 16 y más cigarrillos | I6: 1-2 horas | J6: 2 | L6: 1 | N6: =N5+1 -> 2 | O6: 1 | P6: No | R6: Hormigueo | U6: Ábrego | X6: Dos veces a la semana | Y6: 30 min | AA6: 15 | AD6: Lado derecho | AE6: Dolor | AG6: Cuello lado izquierdo | AI6: Hormigueo | AJ6: Al final del día | AK6: 1 mes | AL6: De 1 a 7 días | AM6: Un poco incómodo | AN6: Poca interferencia | AP6: No
A7: =A6+0.01 -> 1.32 | B7: 30.2 | D7: Correr | F7: Tres veces a la semana | I7: 2- 4 horas | J7: 3 | L7: 2 | N7: =N6+1 -> 3 | O7: 2 | R7: Adormecimiento | U7: Abriaquí | X7: Tres veces a la semana | Y7: 1 hora | AA7: 16 | AD7: Lado izquierdo | AE7: Hormigueo | AG7: Cuello ambos lados | AI7: Adormecimiento | AJ7: Al final de la semana | AK7: 3 meses | AL7: De 8 a 30 días | AM7: Moderadamente incómodo | AN7: Interfiere sustancialmente
A8: 1.33 | B8: 30.3 | D8: Gimnasio | F8: Fines de semana | I8: 4-6 horas | J8: 4 | L8: 3 | N8: 4 | O8: 3 | R8: Malestar | U8: Acacías | X8: Fines de semana | Y8: Más de 1 hora | AA8: 17 | AB8: Seleccione | AC8: Seleccione | AD8: Ambos | AE8: Adormecimiento | AG8: Hombro derecho | AI8: Malestar | AJ8: Todo el tiempo | AK8: 6 meses | AL8: De manera permanente | AM8: Muy incómodo
A9: 1.34 | B9: 30.4 | D9: Bicicleta | F9: Nunca | H9: Seleccione | I9: 8 horas | J9: =J8+1 -> 5 | L9: 4 | N9: 5 | O9: 4 | U9: Acandí | AA9: 18 | AB9: Diario | AC9: 15 min | AE9: Malestar | AG9: Hombro izquierdo | AJ9: En mi casa | AK9: 12 meses | AL9: De manera intermitente
A10: 1.35 | B10: 30.5 | D10: Futbol | H10: Menos de 1 año | I10: 12 horas | J10: =J9+1 -> 6 | L10: =L9+1 -> 5 | N10: 6 | O10: =O9+1 -> 5 | U10: Acevedo | AA10: =AA9+1 -> 19 | AB10: Dos veces a la semana | AC10: 30 min | AG10: Ambos hombros | AK10: Más de 12 meses
A11: 1.36 | B11: 30.6 | D11: Baloncesto | H11: 1 a 2 años | I11: otro | J11: 7 | L11: =L10+1 -> 6 | N11: 7 | O11: 6 | R11: Seleccione | U11: Achí | AA11: =AA10+1 -> 20 | AB11: Tres veces a la semana | AC11: 1 hora | AG11: Espalda alta lado derecho
A12: 1.37 | B12: 30.7 | D12: Voleyball | H12: 3 a 4 años | J12: 8 | L12: 7 | N12: 8 | O12: 7 | R12: Al realizar mi trabajo | U12: Agrado | X12: Seleccione | Z12: Seleccione | AA12: 21 | AB12: Fines de semana | AC12: Más de 1 hora | AE12: Seleccione | AG12: Espalda alta lado izquierdo
A13: 1.38 | B13: 30.8 | D13: Natación | F13: Seleccione | H13: 5 a 9 años | J13: 9 | L13: 8 | N13: 9 | O13: 8 | R13: Al final del día | U13: Agua De Dios | X13: Mujer | Z13: 1 | AA13: 22 | AE13: Al realizar mi trabajo | AG13: Espalda alta ambos lados
A14: 1.39 | B14: 30.9 | D14: Tenis de campo | F14: 15 min | H14: 10 años en adelante | J14: 10 | L14: 9 | N14: 10 | O14: 9 | R14: Al final de la semana | U14: Aguachica | X14: Hombre | Z14: 2 | AA14: 23 | AE14: Al final del día | AG14: Espalda baja lado derecho
A15: 1.4 | B15: 31 | D15: Ciclovia | F15: 30 min | J15: 11 | L15: 10 | N15: =N14+1 -> 11 | O15: 10 | R15: Todo el tiempo | U15: Aguada | Z15: 3 | AA15: 24 | AE15: Al final de la semana | AG15: Espalda baja lado izquierdo
A16: =A15+0.01 -> 1.41 | B16: 31.1 | D16: Patinar | F16: 1 hora | J16: 12 | L16: 11 | N16: 12 | O16: 11 | R16: En mi casa | U16: Aguadas | X16: Seleccione | Z16: 4 | AA16: 25 | AE16: Todo el tiempo | AG16: Espalda baja ambos lados
A17: 1.42 | B17: 31.2 | D17: Otro | F17: Más de 1 hora | J17: 13 | L17: 12 | N17: 13 | O17: 12 | U17: Aguazul | X17: Derecho | Z17: 5 | AA17: 26 | AC17: Seleccione | AE17: En mi casa | AG17: Brazo derecho
A18: 1.43 | B18: 31.3 | J18: 14 | L18: 13 | N18: 14 | O18: 13 | U18: Agustín Codazzi | X18: Izquierdo | Z18: 6 | AA18: 27 | AC18: 1 | AG18: Brazo izquierdo
A19: 1.44 | B19: 31.4 | J19: 15 | L19: 14 | N19: 15 | O19: 14 | R19: Seleccione | U19: Aipe | X19: Ambos | Z19: 7 | AA19: 28 | AC19: 2 | AG19: Ambos brazos
A20: 1.45 | B20: 31.5 | J20: 16 | L20: 15 | N20: 16 | O20: 15 | R20: Menos de 24 horas | U20: Albán | Z20: 8 | AA20: 29 | AC20: 3 | AG20: Codo derecho
A21: 1.46 | B21: 31.6 | J21: 17 | L21: 16 | N21: 17 | O21: 16 | R21: De 1 a 7 días | U21: Albania | Z21: 9 | AA21: 30 | AC21: 4 | AG21: Codo izquierdo
A22: 1.47 | B22: 31.7 | J22: 18 | L22: 17 | N22: 18 | O22: 17 | R22: De 8 a 30 días | U22: Alcalá | Z22: 10 | AA22: 31 | AC22: 5 | AG22: Ambos codos
A23: 1.48 | B23: 31.8 | J23: 19 | L23: 18 | N23: 19 | O23: 18 | R23: De manera permanente | U23: Aldana | Z23: 11 | AA23: 32 | AC23: 6 | AG23: Antebrazo derecho
A24: 1.49 | B24: 31.9 | J24: 20 | L24: 19 | N24: 20 | O24: 19 | R24: De manera intermitente | U24: Alejandría | Z24: 12 | AA24: 33 | AC24: 7 | AG24: Antebrazo izquierdo
A25: 1.5 | B25: 32 | J25: 21 | L25: 20 | N25: 21 | O25: 20 | U25: Algarrobo | Z25: 13 | AA25: 34 | AC25: 8 | AG25: Ambos antebrazos
A26: 1.51 | B26: 32.1 | J26: 22 | L26: 21 | N26: 22 | O26: 21 | U26: Algeciras | Z26: 14 | AA26: 35 | AC26: 9 | AG26: Muñeca derecha
A27: 1.52 | B27: 32.2 | J27: 23 | L27: 22 | N27: 23 | O27: 22 | R27: Seleccione | U27: Almaguer | Z27: 15 | AA27: 36 | AC27: 10 | AG27: Muñeca izquierda
A28: 1.53 | B28: 32.3 | J28: 24 | L28: 23 | N28: 24 | O28: 23 | R28: 1 semana | U28: Almeida | Z28: 16 | AA28: 37 | AE28: Seleccione | AG28: Ambas muñecas
A29: 1.54 | B29: 32.4 | L29: 24 | N29: 25 | O29: =O28+1 -> 24 | R29: 1 mes | U29: Alpujarra | Z29: 17 | AA29: 38 | AE29: 1 semana | AG29: Mano derecha
A30: 1.55 | B30: 32.5 | L30: 25 | N30: 26 | O30: 25 | R30: 3 meses | U30: Altamira | Z30: 18 | AA30: 39 | AE30: 1 mes | AG30: Mano izquierda
A31: 1.56 | B31: 32.6 | L31: 26 | N31: 27 | O31: 26 | R31: 6 meses | U31: Alto Baudó | Z31: 19 | AA31: 40 | AE31: 3 meses | AG31: Ambas manos
A32: 1.57 | B32: 32.7 | L32: 27 | N32: 28 | O32: 27 | R32: 12 meses | U32: Altos Del Rosario | Z32: 20 | AA32: 41 | AE32: 6 meses | AG32: Dedos mano derecha
A33: 1.58 | B33: 32.8 | I33: Seleccione | L33: 28 | N33: 29 | O33: 28 | R33: Más de 12 meses | U33: Alvarado | Z33: 21 | AA33: 42 | AE33: 12 meses | AG33: Dedos mano izquierda
A34: 1.59 | B34: 32.9 | I34: Diario | L34: 29 | N34: 30 | O34: 29 | U34: Amagá | Z34: 22 | AA34: 43 | AE34: Más de 12 meses | AG34: Dedos ambas manos
A35: 1.6 | B35: 33 | I35: Dos veces a la semana | L35: 30 | N35: 31 | O35: 30 | R35: Seleccione | U35: Amalfi | Z35: 23 | AA35: 44 | AG35: Cadera derecha
A36: 1.61 | B36: 33.1 | I36: Tres veces a la semana | L36: 31 | N36: 32 | O36: 31 | R36: 0: Ningún dolor | U36: Ambalema | Z36: 24 | AA36: 45 | AG36: Cadera izquierda
A37: 1.62 | B37: 33.2 | I37: Fines de semana | L37: 32 | N37: 33 | O37: 32 | R37: 1 | U37: Anapoima | X37: Seleccione | AA37: 46 | AG37: Ambas caderas
A38: 1.63 | B38: 33.3 | I38: Nunca | L38: 33 | N38: 34 | O38: 33 | R38: 2 | U38: Ancuyá | X38: No, en absoluto | AA38: 47 | AG38: Muslo derecho
A39: 1.64 | B39: 33.4 | L39: 34 | N39: 35 | O39: 34 | R39: 3 | U39: Andalucía | X39: Poca interferencia | AA39: 48 | AG39: Muslo izquierdo
A40: 1.65 | B40: 33.5 | L40: 35 | N40: 36 | O40: 35 | R40: 4 | U40: Andes | X40: Interfiere sustancialmente | AA40: 49 | AG40: Ambos muslos
A41: 1.66 | B41: 33.6 | L41: 36 | N41: 37 | O41: 36 | R41: 5 | U41: Angelópolis | AA41: 50 | AG41: Rodilla derecha
A42: 1.67 | B42: 33.7 | L42: 37 | N42: 38 | O42: 37 | R42: 6 | U42: Angostura | AA42: 51 | AG42: Rodilla izquierda
A43: 1.68 | B43: 33.8 | L43: 38 | N43: 39 | O43: 38 | R43: 7 | U43: Anolaima | AA43: 52 | AG43: Ambas rodillas
A44: 1.69 | B44: 33.9 | L44: 39 | N44: 40 | O44: 39 | R44: 8 | U44: Anorí | AA44: 53 | AG44: Pierna derecha
A45: 1.7 | B45: 34 | L45: 40 | O45: 40 | R45: 9 | U45: Anserma | AA45: 54 | AG45: Pierna izquierda
A46: 1.71 | B46: 34.1 | O46: 41 | R46: 10: Dolor intolerable | U46: Ansermanuevo | AA46: 55 | AG46: Ambas piernas
A47: 1.72 | B47: 34.2 | O47: 42 | U47: Anzá | AA47: =AA46+1 -> 56 | AG47: Pie derecho
A48: =A47+0.01 -> 1.73 | B48: 34.3 | O48: 43 | U48: Anzoátegui | AA48: 57 | AG48: Pie izquierdo
A49: 1.74 | B49: 34.4 | O49: 44 | U49: Apartadó | AA49: 58 | AG49: Ambos pies
A50: 1.75 | B50: 34.5 | O50: 45 | U50: Apía | AA50: 59
A51: 1.76 | B51: 34.6 | O51: 46 | U51: Apulo | AA51: 60
A52: 1.77 | B52: 34.7 | O52: 47 | U52: Aquitania | AA52: 61
A53: 1.78 | B53: 34.8 | O53: 48 | U53: Aracataca | AA53: 62
A54: 1.79 | B54: 34.9 | O54: 49 | U54: Aranzazu | AA54: 63
A55: 1.8 | B55: 35 | O55: 50 | U55: Aratoca | AA55: 64
A56: 1.81 | B56: 35.1 | O56: 51 | U56: Arauca | AA56: 65
A57: 1.82 | B57: 35.2 | O57: 52 | U57: Arauquita | AA57: 66
A58: 1.83 | B58: 35.3 | O58: 53 | U58: Arbeláez | AA58: 67
A59: 1.84 | B59: 35.4 | O59: 54 | U59: Arboleda | AA59: 68
A60: 1.85 | B60: 35.5 | O60: 55 | U60: Arboledas | AA60: =AA59+1 -> 69
A61: 1.86 | B61: 35.6 | O61: 56 | U61: Arboletes | AA61: 70
A62: 1.87 | B62: 35.7 | O62: 57 | U62: Arcabuco
A63: 1.88 | B63: 35.8 | O63: 58 | U63: Arenal
A64: 1.89 | B64: 35.9 | O64: 59 | U64: Argelia
A65: 1.9 | B65: 36 | O65: 60 | U65: Ariguaní
A66: 1.91 | B66: 36.1 | U66: Arjona
A67: 1.92 | B67: 36.2 | U67: Armenia
A68: 1.93 | B68: 36.3 | U68: Armero Guayabal
A69: 1.94 | B69: 36.4 | U69: Arroyohondo
A70: 1.95 | B70: =B69+0.1 -> 36.5 | U70: Astrea
A71: 1.96 | B71: 36.6 | U71: Ataco
A72: 1.97 | B72: 36.7 | U72: Atrato
A73: 1.98 | B73: 36.8 | U73: Ayapel
A74: 1.99 | B74: 36.9 | U74: Bagadó
A75: 2 | B75: 37 | U75: Bahía Solano
A76: 2.01 | B76: 37.1 | U76: Bajo Baudó
A77: 2.02 | B77: 37.2 | U77: Balboa
A78: 2.03 | B78: 37.3 | U78: Baranoa
A79: 2.04 | B79: 37.4 | U79: Baraya
A80: =A79+0.01 -> 2.05 | B80: 37.5 | U80: Barbacoas
A81: 2.06 | B81: 37.6 | U81: Barbosa
A82: 2.07 | B82: 37.7 | U82: Barichara
A83: 2.08 | B83: 37.8 | U83: Barranca De Upía
A84: 2.09 | B84: 37.9 | U84: Barrancabermeja
A85: 2.1 | B85: 38 | U85: Barrancas
B86: 38.1 | U86: Barranco De Loba
B87: 38.2 | U87: Barranco Minas
B88: 38.3 | U88: Barranquilla
B89: 38.4 | U89: Becerril
B90: 38.5 | U90: Belalcázar
B91: 38.6 | U91: Belén
B92: 38.7 | U92: Belén De Los Andaquíes
B93: 38.8 | U93: Belén De Umbría
B94: 38.9 | U94: Bello
B95: 39 | U95: Belmira
B96: 39.1 | U96: Beltrán
B97: 39.2 | U97: Berbeo
B98: 39.3 | U98: Betania
B99: 39.4 | U99: Betéitiva
B100: 39.5 | U100: Betulia
B101: 39.6 | U101: Bituima
B102: 39.7 | U102: Boavita
B103: 39.8 | U103: Bochalema
B104: 39.9 | U104: Bogotá, D.C.
B105: 40 | U105: Bojacá
B106: 40.1 | U106: Bojayá
B107: 40.2 | U107: Bolívar
B108: 40.3 | U108: Bosconia
B109: 40.4 | U109: Boyacá
B110: 40.5 | U110: Briceño
B111: 40.6 | U111: Bucaramanga
B112: 40.7 | U112: Bucarasica
B113: 40.8 | U113: Buenaventura
B114: 40.9 | U114: Buenavista
B115: 41 | U115: Buenos Aires
B116: 41.1 | U116: Buesaco
B117: 41.2 | U117: Bugalagrande
B118: 41.3 | U118: Buriticá
B119: 41.4 | U119: Busbanzá
B120: 41.5 | U120: Cabrera
B121: 41.6 | U121: Cabuyaro
B122: 41.7 | U122: Cacahual
B123: 41.8 | U123: Cáceres
B124: 41.9 | U124: Cachipay
B125: 42 | U125: Cáchira
B126: 42.1 | U126: Cácota
B127: 42.2 | U127: Caicedo
B128: 42.3 | U128: Caicedonia
B129: 42.4 | U129: Caimito
B130: 42.5 | U130: Cajamarca
B131: 42.6 | U131: Cajibío
B132: 42.7 | U132: Cajicá
B133: 42.8 | U133: Calamar
B134: =B133+0.1 -> 42.9 | U134: Calarcá
B135: 43 | U135: Caldas
B136: 43.1 | U136: Caldono
B137: 43.2 | U137: Cali
B138: 43.3 | U138: California
B139: 43.4 | U139: Calima
B140: 43.5 | U140: Caloto
B141: 43.6 | U141: Campamento
B142: 43.7 | U142: Campo De La Cruz
B143: 43.8 | U143: Campoalegre
B144: 43.9 | U144: Campohermoso
B145: 44 | U145: Canalete
B146: 44.1 | U146: Candelaria
B147: 44.2 | U147: Cantagallo
B148: 44.3 | U148: Cañasgordas
B149: 44.4 | U149: Caparrapí
B150: 44.5 | U150: Capitanejo
B151: 44.6 | U151: Cáqueza
B152: 44.7 | U152: Caracolí
B153: 44.8 | U153: Caramanta
B154: 44.9 | U154: Carcasí
B155: 45 | U155: Carepa
B156: 45.1 | U156: Carmen De Apicalá
B157: 45.2 | U157: Carmen De Carupa
B158: 45.3 | U158: Carmen Del Darién
B159: 45.4 | U159: Carolina
B160: 45.5 | U160: Cartagena De Indias
B161: 45.6 | U161: Cartagena Del Chairá
B162: 45.7 | U162: Cartago
B163: 45.8 | U163: Carurú
B164: 45.9 | U164: Casabianca
B165: 46 | U165: Castilla La Nueva
B166: 46.1 | U166: Caucasia
B167: 46.2 | U167: Cepitá
B168: 46.3 | U168: Cereté
B169: 46.4 | U169: Cerinza
B170: 46.5 | U170: Cerrito
B171: 46.6 | U171: Cerro De San Antonio
B172: 46.7 | U172: Cértegui
B173: 46.8 | U173: Chachagüí
B174: 46.9 | U174: Chaguaní
B175: 47 | U175: Chalán
B176: 47.1 | U176: Chámeza
B177: 47.2 | U177: Chaparral
B178: 47.3 | U178: Charalá
B179: 47.4 | U179: Charta
B180: 47.5 | U180: Chía
B181: 47.6 | U181: Chigorodó
B182: 47.7 | U182: Chima
B183: 47.8 | U183: Chimá
B184: 47.9 | U184: Chimichagua
B185: 48 | U185: Chinácota
B186: 48.1 | U186: Chinavita
B187: 48.2 | U187: Chinchiná
B188: 48.3 | U188: Chinú
B189: 48.4 | U189: Chipaque
B190: 48.5 | U190: Chipatá
B191: 48.6 | U191: Chiquinquirá
B192: 48.7 | U192: Chíquiza
B193: 48.8 | U193: Chiriguaná
B194: 48.9 | U194: Chiscas
B195: 49 | U195: Chita
B196: 49.1 | U196: Chitagá
B197: 49.2 | U197: Chitaraque
B198: =B197+0.1 -> 49.3 | U198: Chivatá
B199: 49.4 | U199: Chivolo
B200: 49.5 | U200: Chivor
B201: 49.6 | U201: Choachí
... 1304 more rows
